fUST/lending_fUST_20240512
["ID","MTS","AMOUNT","RATE_DAILY","PERIOD"]
[326826096,1715458232578,-500.0,0.00025204,2]
[326826098,1715458232587,-500.0,0.00025204,2]
[326826100,1715458232597,-500.0,0.00025204,2]
[326826102,1715458232607,-500.0,0.00025204,2]
[326826104,1715458232616,-500.0,0.00025204,2]
[326826106,1715458232626,-500.0,0.00025204,2]
[326826108,1715458232635,-500.0,0.00025204,2]
[326826110,1715458232644,-500.0,0.00025204,2]
[326826112,1715458232653,-342.94911372,0.00025204,2]
[326826129,1715458238402,-500.0,0.00024999,2]
[326826130,1715458238410,-462.61,0.00024999,2]
[326826159,1715458243508,-37.39,0.00024999,2]
[326826160,1715458243517,-500.0,0.00024999,2]
[326826161,1715458243527,-500.0,0.00024999,2]
[326826162,1715458243537,-500.0,0.00024999,2]
[326826163,1715458243546,-500.0,0.00024999,2]
[326826164,1715458243556,-500.0,0.00024999,2]
[326826165,1715458243565,-500.0,0.00024999,2]
[326826166,1715458243574,-500.0,0.00024999,2]
[326826167,1715458243583,-376.29384968,0.00024999,2]
[326826168,1715458243592,-48.31615632,0.00024999,2]
[326826169,1715458243604,-451.68384368,0.00024999,2]
[326826170,1715458243613,-500.0,0.00024999,2]
[326826171,1715458243622,-500.0,0.00024999,2]
[326826172,1715458243631,-500.0,0.00024999,2]
[326826173,1715458243640,-500.0,0.00024999,2]
[326826174,1715458243649,-156.53267806,0.00027854,2]
[326826175,1715458243658,-666.95759842,0.00029253,2]
[326826176,1715458243668,-6932.80069307,0.0003,2]
[326826177,1715458243677,-156.53267806,0.00031375,2]
[326826178,1715458243686,-157.755143,0.00033873,2]
[326826179,1715458243695,-156.53267806,0.00034896,2]
[326826180,1715458243704,-2000.0,0.00034899,2]
[326826181,1715458243714,-151.0,0.000349,11]
[326826182,1715458243723,-178.5,0.000349,9]
[326826183,1715458243733,-5289.86936317,0.00034996,7]
[326826184,1715458243745,-27839.82534152,0.00034996,7]
[326826185,1715458243754,-2706.90379479,0.00034996,7]
[326826186,1715458243765,-3022.99976975,0.00034996,2]
[326826190,1715458246668,-327.88171992,0.00020913,2]
[326826191,1715458246677,-194.23378919,0.00020913,2]
[326826233,1715459432850,-46583.12380337,0.00019218,2]
[326826234,1715459432862,-4327.32038906,0.00019219,2]
[326826286,1715459443874,-6845.32354956,0.00019219,2]
[326826288,1715459443891,-64.75780656,0.00019318,2]
[326826316,1715460234997,1147.80069477,0.00015,2]
[326826460,1715460637949,-187.526687,0.00018234,2]
[326826462,1715460637958,-633.8614783,0.00018314,2]
[326826629,1715460869372,1400.93795324,9.999e-05,2]
[326826630,1715461114133,891.82,0.00010959,2]
[326826631,1715461167644,163.27754671,0.00010959,2]
[326826632,1715461199620,154.75239617,0.00010959,2]
[326826633,1715461217627,162.28050051,0.00010959,2]
[326826634,1715461312984,6752.79451082,0.00015,2]
[326826635,1715461573998,1400.93795324,9.999e-05,2]
[326826636,1715461623437,154.75415547,0.00015,2]
[326826695,1715461832229,-249.128532,0.00017182,2]
[326826697,1715461832239,-1020.7539887,0.00017184,2]
[326826699,1715461832248,-256.83580612,0.00018108,2]
[326826701,1715461832257,-1147.80069477,0.00018205,2]
[326826703,1715461832266,-1399.17239624,0.00018206,2]
[326826705,1715461832275,-689.55985205,0.00018207,2]
[326826707,1715461832284,-38819.26983615,0.00018207,2]
[326826709,1715461832293,-314.98827974,0.00018208,2]
[326826711,1715461832302,-225.18673014,0.00018208,7]
[326826713,1715461832311,-890.67521582,0.00018208,2]
[326826715,1715461832320,-1092.09177518,0.00018208,2]
[326826717,1715461832329,-154.91736314,0.00018208,2]
[326826719,1715461832338,-1351.7263104,0.00018208,2]
[326826721,1715461832347,-55015.40801082,0.00018211,2]
[326826723,1715461832356,-2414.56845731,0.00018312,2]
[326826725,1715461832365,-189.69444695,0.00018312,2]
[326826727,1715461832374,-154.79876161,0.00018997,2]
[326826729,1715461832383,-500.0,0.00019178,2]
[326826731,1715461832392,-500.0,0.00019178,2]
[326826733,1715461832400,-500.0,0.00019178,2]
[326826735,1715461832410,-500.0,0.00019178,2]
[326826737,1715461832418,-500.0,0.00019178,2]
[326826739,1715461832427,-500.0,0.00019178,2]
[326826741,1715461832437,-500.0,0.00019178,2]
[326826743,1715461832446,-500.0,0.00019178,2]
[326826745,1715461832455,-500.0,0.00019178,2]
[326826747,1715461832464,-637.62938497,0.00019178,2]
[326826749,1715461832473,-500.0,0.00019178,2]
[326826751,1715461832482,-500.0,0.00019178,2]
[326826753,1715461832491,-169.082181,0.00019178,2]
[326826755,1715461832500,-170.426151,0.00019178,2]
[326826757,1715461832508,-2902.72511672,0.00019431,2]
[326826758,1715461832517,-256.83580611,0.00019796,2]
[326826760,1715461832526,-2012.10118066,0.0002,2]
[326826761,1715461832535,-154.75239617,0.0002,2]
[326826762,1715461832544,-527.63757821,0.00020542,2]
[326826764,1715461832553,-409.82935884,0.00020544,2]
[326826766,1715461832562,-197.65521067,0.00020645,2]
[326826798,1715461843766,-1138.95747687,0.00020645,2]
[326826799,1715461843776,-891.0382113,0.00020646,2]
[326826800,1715461843785,-1157.9324208,0.00020809,2]
[326826801,1715461843794,-500.0,0.00020913,2]
[326826802,1715461843803,-500.0,0.00020913,2]
[326826803,1715461843812,-495.19831348,0.00020913,2]
[326826808,1715461846489,-4.80168652,0.00020913,2]
[326826809,1715461846498,-500.0,0.00020913,2]
[326826810,1715461846508,-500.0,0.00020913,2]
[326826811,1715461846517,-390.24576148,0.00020913,2]
[326826812,1715461846526,-500.0,0.00020913,2]
[326826813,1715461846536,-500.0,0.00020913,2]
[326826814,1715461846545,-437.79996446,0.00020913,2]
[326826861,1715463038789,-258.75359852,0.0001893,2]
[326826957,1715463046705,-500.0,0.0001893,2]
[326826958,1715463096768,194.19731368,9.999e-05,2]
[326826959,1715463106253,1337.05647806,9.999e-05,2]
[326826960,1715463261312,287.81738024,9.999e-05,2]
[326826963,1715463568991,3530.70557581,0.00015,2]
[326826964,1715463743836,1709.4519652,0.00016574,2]
[326826965,1715463799198,24870.0,0.00016573,2]
[326826966,1715463820103,320.02,0.00010959,2]
[326826968,1715463875928,3000.0,0.00016571,2]
[326826977,1715464016223,689.55985205,9.999e-05,2]
[326826980,1715464055533,249.128532,0.00016566,2]
[326827053,1715464232022,-612.0,0.00017126,2]
[326827055,1715464232035,-77.55985205,0.00017126,2]
[326827057,1715464232044,-1895.18893597,0.00017483,2]
[326827059,1715464232053,-827.66614112,0.00017484,2]
[326827060,1715464232062,-185.40801931,0.00017486,2]
[326827062,1715464232071,-38819.26983615,0.00017581,2]
[326827063,1715464232080,-309.4430026,0.00017582,2]
[326827064,1715464232089,-59325.71232151,0.00017582,2]
[326827065,1715464232098,-1147.80069477,0.00017584,2]
[326827066,1715464232107,-2631.19780464,0.00017592,2]
[326827068,1715464232116,-1713.81519438,0.00017595,2]
[326827070,1715464232125,-11035.01693772,0.000176,2]
[326827072,1715464232134,-894.67511144,0.00018,2]
[326827073,1715464232143,-189.69444695,0.00018,2]
[326827074,1715464232152,-185.40801927,0.00018317,2]
[326827075,1715464232160,-833.42845868,0.00018745,2]
[326827076,1715464232169,-150.0,0.000189,2]
[326827077,1715464232178,-185.40801927,0.00019148,2]
[326827078,1715464232187,-500.0,0.00019178,2]
[326827079,1715464232197,-500.0,0.00019178,2]
[326827080,1715464232206,-314.2698051,0.00019178,2]
[326827081,1715464232215,-424.63175103,0.00019178,2]
[326827082,1715464232223,-500.0,0.00019178,2]
[326827083,1715464232232,-500.0,0.00019178,2]
[326827084,1715464232241,-500.0,0.00019178,2]
[326827085,1715464232250,-500.0,0.00019178,2]
[326827086,1715464232259,-500.0,0.00019178,2]
[326827087,1715464232267,-472.41714084,0.00019178,2]
[326827088,1715464232276,-500.0,0.00019178,2]
[326827089,1715464232285,-500.0,0.00019178,2]
[326827090,1715464232294,-500.0,0.00019178,2]
[326827091,1715464232302,-500.0,0.00019178,2]
[326827092,1715464232311,-500.0,0.00019178,2]
[326827093,1715464232320,-170.426151,0.00019178,2]
[326827094,1715464232329,-166.394241,0.00019178,2]
[326827095,1715464232338,-185.40801927,0.00019979,2]
[326827096,1715464232346,-154.75239617,0.0002,2]
[326827097,1715464232355,-2012.10118066,0.0002,2]
[326827098,1715464232364,-172.30777111,0.00020703,2]
[326827099,1715464232373,-238.5745,0.00020808,2]
[326827100,1715464232382,-185.40801927,0.0002081,2]
[326827101,1715464232391,-151.0,0.00020907,2]
[326827102,1715464232400,-151.0,0.00020907,2]
[326827103,1715464232409,-151.0,0.00020907,2]
[326827105,1715464232421,-151.0,0.00020907,2]
[326827106,1715464232430,-151.0,0.00020907,2]
[326827107,1715464232439,-155.951997,0.00020907,2]
[326827108,1715464232451,-151.0,0.00020907,2]
[326827109,1715464232462,-152.757917,0.00020907,2]
[326827110,1715464232477,-151.0,0.00020907,2]
[326827111,1715464232486,-151.0,0.00020907,2]
[326827112,1715464232496,-151.0,0.00020907,2]
[326827113,1715464232505,-1578.94023336,0.00020908,2]
[326827114,1715464232515,-491.91161374,0.00020908,2]
[326827116,1715464232523,-500.0,0.00020908,2]
[326827118,1715464232533,-500.0,0.00020908,2]
[326827120,1715464232542,-500.0,0.00020908,2]
[326827122,1715464232551,-500.0,0.00020908,2]
[326827124,1715464232559,-360.61375332,0.00020908,2]
[326827126,1715464232568,-458.02079146,0.00020909,2]
[326827128,1715464232577,-151.0,0.00020909,2]
[326827129,1715464232586,-151.0,0.00020909,2]
[326827130,1715464232595,-151.0,0.00020909,2]
[326827131,1715464232604,-187.84309,0.00020909,2]
[326827132,1715464232615,-166.812584,0.00020909,2]
[326827133,1715464232631,-151.0,0.00020909,2]
[326827134,1715464232645,-57389.32542721,0.00020909,7]
[326827135,1715464232662,-24696.22171905,0.00020909,7]
[326827136,1715464232676,-514.75252816,0.0002091,2]
[326827137,1715464232690,-45700.24202639,0.0002091,2]
[326827138,1715464232704,-151.0,0.0002091,2]
[326827139,1715464232718,-193.96001313,0.00020911,2]
[326827140,1715464232732,-607.60261113,0.00020912,2]
[326827141,1715464232747,-1881.6796197,0.00020912,2]
[326827142,1715464232761,-1919.20371595,0.00020912,2]
[326827143,1715464232773,-15757.39967628,0.00020912,2]
[326827260,1715465064767,689.55985205,9.999e-05,2]
[326827457,1715465443272,-689.55985205,0.00017996,2]
[326827458,1715465443281,-1895.18893597,0.00017997,2]
[326827459,1715465443291,-189.69444695,0.00018799,2]
[326827460,1715465443300,-295.112965,0.000188,2]
[326827461,1715465443309,-1818.0175846,0.00018923,2]
[326827462,1715465443318,-155.63834252,0.00019299,2]
[326827463,1715465443327,-930.31002276,0.000194,2]
[326827464,1715465443336,-309.38123752,0.00019408,2]
[326827465,1715465443346,-783.35516348,0.00019898,2]
[326827466,1715465443356,-176.33,0.00019988,3]
[326827467,1715465443365,-60.27673221,0.00019997,2]
[326827468,1715465443377,-3740.76210282,0.00019997,2]
[326827470,1715465443388,-10533.44636771,0.00019997,2]
[326827472,1715465443399,-15212.12000001,0.00019997,2]
[326827475,1715465443410,-2708.9103859,0.00019997,2]
[326827477,1715465443421,-1212.71245208,0.00019997,2]
[326827525,1715465446266,-3864.47542972,0.00019997,2]
[326827527,1715465467171,1093.52882547,9.999e-05,2]
[326827528,1715465656327,1000.0,9.999e-05,2]
[326827529,1715465878154,409.95141786,9.999e-05,2]
[326827533,1715466332397,689.55985205,9.999e-05,2]
[326827534,1715466357865,154.75239617,9.999e-05,2]
[326827535,1715466383704,1093.52882547,9.999e-05,2]
[326827536,1715466398475,1000.0,9.999e-05,2]
[326827537,1715466591199,1714.42698303,9.999e-05,2]
[326827548,1715466632484,-189.69444695,0.00018919,2]
[326827550,1715466632494,-295.112965,0.0001892,2]
[326827552,1715466632503,-169.754166,0.00019178,2]
[326827553,1715466632513,-833.42845868,0.00019458,2]
[326827554,1715466632521,-160.95897375,0.00019767,2]
[326827555,1715466632531,-685.43576808,0.00019767,2]
[326827556,1715466632540,-160.95897373,0.000198,2]
[326827557,1715466632549,-160.95897373,0.00019832,2]
[326827558,1715466632558,-1713.20340573,0.00019863,2]
[326827559,1715466632567,-8120.71138436,0.00019864,7]
[326827561,1715466632577,-8759.76248399,0.00019864,2]
[326827571,1715466632669,-1463.51827063,0.00019864,2]
[326827607,1715466638319,-262.3827165,0.00019863,2]
[326827614,1715466640614,-999.8931978,0.00019863,2]
[326827623,1715466643533,-2072.61134674,0.00019863,2]
[326827696,1715466646609,-5659.54202429,0.00019863,2]
[326827703,1715466667553,154.75239617,9.999e-05,2]
[326827704,1715466680154,315.58161464,9.999e-05,2]
[326827705,1715466681151,1494.47069895,9.999e-05,2]
[326827706,1715466681798,154.75239617,9.999e-05,2]
[326827707,1715466696258,941.20026414,0.00015,2]
[326827709,1715466713178,154.75239617,9.999e-05,2]
[326827710,1715466716946,665.67444412,9.999e-05,2]
[326827711,1715466724252,154.75239617,9.999e-05,2]
[326827712,1715466733666,154.75239617,9.999e-05,2]
[326827713,1715466736697,521.89035678,9.999e-05,2]
[326827720,1715467023205,1093.52882547,9.999e-05,2]
[326827721,1715467302577,154.75239617,9.999e-05,2]
[326827722,1715467338570,315.58161464,9.999e-05,2]
[326827724,1715467654799,1093.52882547,9.999e-05,2]
[326827725,1715467695147,689.55985205,9.999e-05,2]
[326827726,1715467828821,187.5266905,0.00016874,2]
[326827735,1715467832684,-1399.17239624,0.00017299,2]
[326827737,1715467832693,-119.30933313,0.000173,2]
[326827739,1715467832705,-4559.11957223,0.000173,2]
[326827742,1715467832716,-57856.31841229,0.000173,2]
[326827745,1715467832726,-20224.83958463,0.00017301,2]
[326827747,1715467832735,-8002.6704585,0.00017302,2]
[326827749,1715467832744,-189.69444695,0.00018,2]
[326827751,1715467832753,-599.75629707,0.00018335,2]
[326827752,1715467832762,-188.57107168,0.00018335,2]
[326827754,1715467832771,-1351.7263104,0.00018432,2]
[326827756,1715467832780,-766.4093172,0.00018432,2]
[326827758,1715467832790,-313.67693846,0.00018432,2]
[326827760,1715467832799,-154.91736314,0.00018433,2]
[326827762,1715467832808,-890.67521582,0.00018435,2]
[326827764,1715467832817,-658.72946128,0.00018437,2]
[326827766,1715467832826,-225.18673014,0.00018437,7]
[326827767,1715467832835,-317.94087052,0.00018438,2]
[326827769,1715467832845,-155.03638033,0.00018439,2]
[326827770,1715467832854,-2414.56845731,0.00018444,2]
[326827771,1715467832863,-154.79876161,0.00018845,2]
[326827772,1715467832871,-188.57107168,0.00019043,2]
[326827773,1715467832892,-500.0,0.00019178,2]
[326827774,1715467832901,-500.0,0.00019178,2]
[326827775,1715467832911,-500.0,0.00019178,2]
[326827776,1715467832921,-500.0,0.00019178,2]
[326827777,1715467832930,-500.0,0.00019178,2]
[326827778,1715467832940,-500.0,0.00019178,2]
[326827779,1715467832950,-500.0,0.00019178,2]
[326827780,1715467832960,-500.0,0.00019178,2]
[326827781,1715467832969,-500.0,0.00019178,2]
[326827782,1715467832979,-521.10816056,0.00019178,2]
[326827783,1715467832988,-500.0,0.00019178,2]
[326827784,1715467832998,-500.0,0.00019178,2]
[326827785,1715467833007,-833.42845868,0.00019632,2]
[326827786,1715467833017,-188.57107168,0.00019751,2]
[326827787,1715467833027,-500.0,0.0001985,2]
[326827788,1715467833036,-208.184126,0.0001985,2]
[326827789,1715467833047,-32145.12040512,0.00019851,2]
[326827847,1715467839063,-14915.94138325,0.00019851,2]
[326827849,1715467839075,-718.25132778,0.00019851,2]
[326827851,1715467839086,-2401.74382251,0.00019851,2]
[326827914,1715467844108,-9144.65538285,0.00019851,2]
[326827916,1715467844118,-437.57280001,0.00019857,2]
[326827917,1715467844127,-265.69357442,0.00019858,2]
[326827918,1715467844136,-251.61360678,0.00019858,2]
[326827919,1715467844145,-190.00004498,0.00019858,2]
[326827921,1715467844154,-1651.08515949,0.0001986,2]
[326827923,1715467844164,-154.94304364,0.0001986,2]
[326827924,1715467844172,-155.1527179,0.0001986,2]
[326827925,1715467844182,-1019.09899224,0.0001986,2]
[326827926,1715467844191,-220.56904429,0.0001986,2]
[326827927,1715467844200,-508.33173592,0.0001986,2]
[326827928,1715467844210,-272.46946104,0.0001986,2]
[326827929,1715467844219,-881.1877535,0.00019862,2]
[326827930,1715467844228,-155.00115409,0.00019862,2]
[326827931,1715467844237,-1000.0,0.00019871,2]
[326827932,1715467844246,-2902.72511672,0.00019974,2]
[326827933,1715467844255,-527.63757821,0.00019981,2]
[326827934,1715467844265,-436.0721356,0.00019981,2]
[326827935,1715467844274,-197.65521067,0.00019986,2]
[326827936,1715467844283,-1285.15017818,0.00019996,2]
[326827937,1715467844292,-154.75239617,0.0002,2]
[326827938,1715467844303,-2012.10118066,0.0002,2]
[326827939,1715467844313,-5669.0457216,0.00020434,2]
[326827940,1715467844322,-203.833542,0.00020434,2]
[326827941,1715467844334,-701.68383945,0.00020437,2]
[326827942,1715467844343,-2601.22879423,0.00020538,2]
[326827943,1715467844353,-201.59388037,0.00020541,2]
[326827944,1715467844362,-172.30777111,0.00020703,2]
[326827945,1715467844371,-2808.26543682,0.00020908,2]
[326827946,1715467844380,-2471.85189445,0.00020909,2]
[326827947,1715467844390,-546.91444926,0.0002091,2]
[326827948,1715467844398,-2036.90580912,0.00020913,2]
[326827949,1715467844413,-8586.17518689,0.00020913,2]
[326827950,1715467844422,-881.67,0.0002099,3]
[326827951,1715467844431,-1249.7257131,0.00021,2]
[326827952,1715467844439,-225.0000005,0.00021918,2]
[326827953,1715467844448,-178.108405,0.00021918,2]
[326827954,1715467844457,-166.666666,0.00021918,2]
[326827955,1715467844467,-46669.50987679,0.00022,7]
[326827956,1715467844476,-4132.99121063,0.00022,2]
[326827957,1715467844485,-3000.0,0.00022,2]
[326827958,1715467844494,-166.666666,0.00022431,2]
[326827959,1715467844504,-166.666666,0.00022944,2]
[326827960,1715467844513,-715.10955557,0.00023,2]
[326827961,1715467844522,-716.64972415,0.00023266,2]
[326827962,1715467844531,-166.666666,0.00023456,2]
[326827963,1715467844541,-177.975299,0.00023562,2]
[326827964,1715467844549,-183.784297,0.00023562,2]
[326827965,1715467844558,-304.607975,0.00023562,2]
[326827966,1715467844567,-166.666666,0.00023969,2]
[326827967,1715467844577,-624.83248621,0.0002443,2]
[326827968,1715467844586,-166.666666,0.00024482,2]
[326827969,1715467844595,-620.54558282,0.00024856,2]
[326827970,1715467844604,-758.10276031,0.00025,2]
[326827971,1715467844613,-38001.85449696,0.00025,2]
[326827972,1715467844621,-151.08,0.00025086,2]
[326827973,1715467844630,-599.75629702,0.00025251,2]
[326827974,1715467844640,-620.02727914,0.00026098,2]
[326827975,1715467844649,-306.0,0.00027342,2]
[326827976,1715467844658,-504.19337631,0.00028,2]
[326827977,1715467844667,-183.784297,0.00029531,2]
[326827978,1715467844677,-304.607975,0.00029531,2]
[326827979,1715467844686,-2839.22724157,0.000297,9]
[326827980,1715467844695,-6932.80069307,0.0003,2]
[326827981,1715467844704,-40162.7150899,0.0003,3]
[326828011,1715469032036,-189.69444695,0.00018,2]
[326828013,1715469032046,-169.754166,0.00019608,2]
[326828015,1715469032055,-2012.10118066,0.0002,2]
[326828017,1715469032064,-154.75239617,0.0002081,2]
[326828019,1715469032074,-256.83580612,0.00020811,2]
[326828021,1715469032083,-20224.83958463,0.00020882,2]
[326828023,1715469032093,-1578.94023336,0.00020883,2]
[326828024,1715469032106,-50948.68295316,0.00020883,2]
[326828280,1715469046300,-189.69444695,0.00020881,2]
[326828281,1715469046310,-500.0,0.00020882,2]
[326828282,1715469046319,-169.01201784,0.00020882,2]
[326828283,1715469046328,-3199.61947359,0.00020883,2]
[326828380,1715470232342,-154.75239617,0.0002,2]
[326828381,1715470232352,-155.24760383,0.00020047,2]
[326828893,1715470243853,-170.426151,0.00019178,2]
[326828896,1715470243864,-1856.85357683,0.00020047,2]
[326828899,1715470243873,-227.68,0.00020048,2]
[326828902,1715470243883,-227.68,0.00020048,2]
[326828904,1715470243892,-227.68,0.00020048,2]
[326828906,1715470243903,-227.681,0.00020048,2]
[326828908,1715470243912,-227.68,0.00020048,2]
[326828910,1715470243922,-185.40801927,0.00020326,2]
[326828912,1715470243931,-20224.83958463,0.0002042,2]
[326828914,1715470243940,-20188.10658028,0.00020421,2]
[326829567,1715470660346,-2012.10118066,0.00020311,2]
[326829568,1715470660368,-185.40801927,0.00020311,2]
[326829569,1715470660389,-154.75239617,0.00020311,2]
[326829570,1715470660412,-449.8172228,0.00020312,2]
[326829571,1715470660434,-7197.9211811,0.00020406,2]
[326829572,1715470697472,-2012.10118066,0.00020405,2]
[326829573,1715470697497,-154.75239617,0.00020405,2]
[326829574,1715470697520,-23833.14642317,0.00020405,2]
[326829575,1715470722770,-1657.3623498,0.00019408,2]
[326829576,1715470722793,-154.75239617,0.00020403,2]
[326829577,1715470722816,-1687.88525403,0.00020403,2]
[326829581,1715471303046,-150.0,0.000189,2]
[326829707,1715471438426,-166.394241,0.00019178,2]
[326829708,1715471438435,-154.75239617,0.0002,2]
[326829709,1715471438445,-91.65628484,0.00020074,2]
[326829939,1715471443805,-1920.44489582,0.00020074,2]
[326829941,1715471443814,-833.42845868,0.00020075,2]
[326829943,1715471443823,-185.40801927,0.00020303,2]
[326829945,1715471443832,-4323.64178873,0.00020402,2]
[326830287,1715471447098,150.0,0.000189,2]
[326831207,1715471572645,699.893197,0.00018,2]
[326831246,1715472631792,-2610.0,0.00018,2]
[326831247,1715472631801,-189.69444695,0.00018,2]
[326831248,1715472631810,-156.43338867,0.00019059,2]
[326831249,1715472631819,-453.70312092,0.00019061,2]
[326831250,1715472631828,-20224.83958463,0.00019155,2]
[326831251,1715472631837,-30726.29243322,0.00019156,2]
[326831294,1715472637861,-2788.13612145,0.00019156,2]
[326831299,1715472637908,-25811.28376684,0.00019156,2]
[326831301,1715472637918,-1147.80069477,0.00019161,2]
[326831303,1715472637927,-176.0989,0.00019178,2]
[326831306,1715472637937,-156.43338865,0.00019371,2]
[326831307,1715472637946,-156.43338865,0.00019682,2]
[326831309,1715472637955,-156.43338865,0.00019994,2]
[326831311,1715472637964,-314.2698051,0.00019995,2]
[326831313,1715472637973,-424.63175103,0.00019995,2]
[326831316,1715472637982,-500.0,0.00019995,2]
[326831317,1715472637992,-500.0,0.00019995,2]
[326831320,1715472638001,-500.0,0.00019995,2]
[326831321,1715472638010,-500.0,0.00019995,2]
[326831324,1715472638020,-500.0,0.00019995,2]
[326831325,1715472638029,-500.0,0.00019995,2]
[326831327,1715472638038,-500.0,0.00019995,2]
[326831329,1715472638048,-500.0,0.00019995,2]
[326831331,1715472638057,-525.17542676,0.00019995,2]
[326831333,1715472638066,-500.0,0.00019995,2]
[326831335,1715472638075,-500.0,0.00019995,2]
[326831337,1715472638087,-500.0,0.00019995,2]
[326831339,1715472638096,-500.0,0.00019995,2]
[326831341,1715472638105,-500.0,0.00019995,2]
[326831343,1715472638115,-500.0,0.00019995,2]
[326831345,1715472638125,-500.0,0.00019995,2]
[326831347,1715472638134,-500.0,0.00019995,2]
[326831349,1715472638143,-500.0,0.00019995,2]
[326831351,1715472638152,-500.0,0.00019995,2]
[326831353,1715472638162,-500.0,0.00019995,2]
[326831355,1715472638171,-249.37864845,0.0002,2]
[326831498,1715472640089,-8e-07,0.0002,2]
[326832023,1715473671405,-434.359492,0.00018963,2]
[326832024,1715473671428,-154.79876161,0.00018993,2]
[326832025,1715473671449,-169.754166,0.00019178,2]
[326832026,1715473671471,-396.99023084,0.0001987,2]
[326832027,1715473671492,-150.46006662,0.0001988,2]
[326832028,1715473671513,-833.42845868,0.00019883,2]
[326832029,1715473671536,-150.46006661,0.00019887,2]
[326832030,1715473671557,-150.46006661,0.00019893,2]
[326832031,1715473671578,-150.46006661,0.000199,2]
[326832032,1715473671599,-500.0,0.000199,2]
[326832033,1715473671620,-500.0,0.000199,2]
[326832034,1715473671644,-658.72946128,0.000199,2]
[326832035,1715473671666,-485.09916314,0.00019968,2]
[326832051,1715473832107,-684.34772768,0.00019441,2]
[326832053,1715473832116,-684.34772768,0.00019686,2]
[326832055,1715473832128,-684.34772768,0.00019789,2]
[326832057,1715473832137,-500.0,0.000199,2]
[326832059,1715473832146,-500.0,0.000199,2]
[326832061,1715473832156,-633.0,0.000199,2]
[326832063,1715473832165,-20224.83958463,0.00019962,2]
[326832064,1715473832174,-1351.7263104,0.00019962,2]
[326832066,1715473832183,-500.0,0.00019962,2]
[326832068,1715473832192,-500.0,0.00019962,2]
[326832070,1715473832201,-500.0,0.00019962,2]
[326832072,1715473832210,-500.0,0.00019962,2]
[326832073,1715473832219,-221.51488718,0.00019962,2]
[326832074,1715473832228,-54758.36948,0.00019963,2]
[326832104,1715473838062,-2219.81826364,0.00019963,2]
[326832111,1715473838128,-5556.55957401,0.00019963,2]
[326832113,1715473838139,-154.91736314,0.00019964,2]
[326832115,1715473838149,-890.67521582,0.00019966,2]
[326832117,1715473838160,-487.8664152,0.00019968,7]
[326832371,1715473906137,2808.26543682,9.999e-05,2]
[326832372,1715473962539,16129.80983779,9.999e-05,2]
[326832373,1715473976164,16129.80983779,9.999e-05,2]
[326832374,1715473990679,689.55985205,9.999e-05,2]
[326832375,1715473992174,16129.80983779,9.999e-05,2]
[326832376,1715474008166,10943.92319343,9.999e-05,2]
[326832385,1715474682556,-150.0,0.00018,2]
[326832386,1715474791962,150.0,0.00018837,2]
[326832438,1715475032436,-11035.01693772,0.00018795,2]
[326832440,1715475032447,-189.69444695,0.00018796,2]
[326832442,1715475032457,-2631.19780464,0.00018796,2]
[326832444,1715475032469,-217.179746,0.00018797,2]
[326832445,1715475032478,-189.37113585,0.00018838,2]
[326832447,1715475032487,-150.0,0.000189,2]
[326832449,1715475032497,-20224.83958463,0.00019529,2]
[326832450,1715475032507,-833.42845868,0.0001953,2]
[326832452,1715475032516,-500.25906981,0.00019577,2]
[326832455,1715475032526,-59325.71232151,0.00019654,2]
[326832457,1715475032536,-500.0,0.00019654,2]
[326832459,1715475032546,-500.0,0.00019654,2]
[326832461,1715475032556,-500.0,0.00019654,2]
[326832463,1715475032565,-500.0,0.00019654,2]
[326832465,1715475032575,-39566.37650119,0.00019655,2]
[326832550,1715475943435,233.154139,0.00016985,2]
[326832554,1715476013780,154.75239617,9.999e-05,2]
[326832555,1715476024921,266.15029163,9.999e-05,7]
[326832589,1715476162735,9033.4244472,0.00016895,2]